bitfinex/quotes_SOLUSD_20220228
["timestamp","ask_amount","ask_price","bid_price","bid_amount"]
[1646012856638,2.14900988,86.369,86.302,22.9511]
[1646012856838,4.535,86.368,86.302,22.9511]
[1646012857238,2.14900988,86.369,86.302,22.9511]
[1646012858247,2.74678921,86.388,86.303,121.8]
[1646012858449,27.29313005,86.398,86.304,4.632]
[1646012858648,24.54634084,86.398,86.306,115.8]
[1646012858852,24.54634084,86.398,86.32,14.05]
[1646012859053,24.54634084,86.398,86.321,30.0157]
[1646012859854,24.54634084,86.398,86.321,24.0157]
[1646012860255,6.0,86.388,86.321,24.0157]
[1646012860454,24.54634084,86.398,86.321,24.0157]
[1646012861054,4.549,86.397,86.321,24.0157]
[1646012862163,4.549,86.397,86.322,6.0]
[1646012862563,6.0,86.388,86.321,24.0157]
[1646012862764,4.549,86.397,86.321,24.0157]
[1646012863163,4.549,86.397,86.322,6.0]
[1646012863564,24.54634084,86.398,86.322,6.0]
[1646012863764,25.04146571,86.389,86.321,24.0157]
[1646012864866,6.0,86.388,86.321,24.0157]
[1646012865266,25.04146571,86.389,86.321,24.0157]
[1646012865466,8.08630275,86.388,86.321,24.0157]
[1646012865668,23.3892,86.387,86.321,24.0157]
[1646012865868,1.94593734,86.386,86.321,24.0157]
[1646012866067,4.526,86.385,86.321,24.0157]
[1646012866275,2.74678921,86.385,86.321,24.0157]
[1646012869873,2.74678921,86.385,86.31,4.632]
[1646012869874,29.12150273,86.384,86.301,22.7115]
[1646012870073,1.96602259,86.383,86.301,22.7115]
[1646012870282,4.527,86.382,86.301,22.7115]
[1646012870479,6.19319027,86.382,86.301,22.7115]
[1646012870675,2.29541416,86.381,86.302,24.6722]
[1646012870875,17.3893,86.37,86.302,24.6722]
[1646012871074,6.21107658,86.369,86.302,24.6722]
[1646012871478,31.86829194,86.369,86.302,24.6722]
[1646012871677,4.52416609,86.368,86.302,24.6722]
[1646012871877,4.527,86.367,86.302,24.6722]
[1646012872076,7.27378921,86.367,86.302,24.6722]
[1646012872277,4.527,86.367,86.302,24.6722]
[1646012872479,2.74678921,86.366,86.302,24.6722]
[1646012873480,2.74678921,86.384,86.302,24.6722]
[1646012873681,2.74678921,86.382,86.31,6.0]
[1646012873981,2.74678921,86.382,86.303,4.632]
[1646012874182,2.04020186,86.387,86.303,4.632]
[1646012874480,2.04020186,86.387,86.31,6.0]
[1646012874680,2.04020186,86.387,86.311,4.632]
[1646012874881,2.04020186,86.387,86.312,6.0]
[1646012875083,2.04020186,86.387,86.313,4.632]
[1646012875285,2.04020186,86.387,86.314,6.0]
[1646012875482,2.04020186,86.387,86.315,23.0838]
[1646012875683,6.0,86.386,86.316,6.0]
[1646012876083,2.04020186,86.387,86.316,6.0]
[1646012876682,6.0,86.386,86.316,6.0]
[1646012877182,8.74678921,86.386,86.316,6.0]
[1646012877587,2.74678921,86.386,86.316,6.0]
[1646012877984,6.0,86.385,86.316,6.0]
[1646012878185,2.04020186,86.387,86.316,6.0]
[1646012878385,2.0113795,86.385,86.316,6.0]
[1646012878587,4.523,86.384,86.316,6.0]
[1646012878786,2.0113795,86.385,86.316,6.0]
[1646012881391,2.0113795,86.385,86.317,115.8]
[1646012881591,2.0113795,86.385,86.318,121.8]
[1646012881789,2.0113795,86.385,86.318,115.8]
[1646012881990,2.0113795,86.385,86.319,6.0]
[1646012882489,2.0113795,86.385,86.316,10.632]
[1646012882690,2.74678921,86.396,86.32,14.05]
[1646012882894,6.0,86.395,86.321,10.631]
[1646012883098,1.94666291,86.408,86.322,115.8]
[1646012883290,6.0,86.407,86.324,115.8]
[1646012883493,6.0,86.407,86.331,115.8]
[1646012883692,6.0,86.407,86.343,115.8]
[1646012883892,6.0,86.407,86.345,115.8]
[1646012884090,6.0,86.407,86.347,115.8]
[1646012884294,2.04812384,86.427,86.351,115.8]
[1646012884592,2.04812384,86.427,86.35,14.05]
[1646012884593,1.96970377,86.448,86.361,115.8]
[1646012884793,1.96970377,86.448,86.371,115.8]
[1646012884994,1.96970377,86.448,86.38,14.05]
[1646012885196,1.96970377,86.448,86.381,6.0]
[1646012885396,22.5531,86.454,86.381,6.0]
[1646012885594,0.99401731,86.453,86.381,6.0]
[1646012885797,6.99401731,86.453,86.382,24.0495]
[1646012885994,6.99401731,86.453,86.383,6.0]
[1646012886398,6.0,86.453,86.385,3.0167236]
[1646012886596,0.63014315,86.476,86.385,3.0167236]
[1646012886597,0.63014315,86.476,86.401,115.8]
[1646012886796,0.63014315,86.476,86.405,115.8]
[1646012886997,0.63014315,86.476,86.42,14.05]
[1646012887195,0.63014315,86.476,86.421,6.0]
[1646012888298,6.0,86.475,86.42,14.05]
[1646012888517,0.63014315,86.476,86.404,52.009236]
[1646012888717,0.63014315,86.476,86.405,6.0]
[1646012889118,0.63014315,86.476,86.406,115.8]
[1646012889319,0.63014315,86.476,86.41,14.05]
[1646012889519,0.63014315,86.476,86.411,6.0]
[1646012890322,0.63014315,86.476,86.412,115.8]
[1646012890524,0.63014315,86.476,86.414,115.8]
[1646012890723,0.63014315,86.476,86.416,115.8]
[1646012890925,0.63014315,86.476,86.421,115.8]
[1646012891122,0.63014315,86.476,86.423,115.8]
[1646012891325,6.0,86.508,86.425,115.8]
[1646012891532,6.0,86.508,86.427,115.8]
[1646012891823,6.0,86.508,86.45,17.3521]
[1646012892024,6.0,86.508,86.452,59.63482903]
[1646012892225,6.0,86.508,86.453,6.0]
[1646012892425,6.0,86.508,86.454,115.8]
[1646012892729,6.0,86.508,86.456,115.8]
[1646012893032,6.0,86.508,86.457,6.0]
[1646012893226,6.0,86.508,86.452,59.63482903]
[1646012893426,6.0,86.507,86.452,59.63482903]
[1646012893627,4.461,86.522,86.452,59.63482903]
[1646012893826,1.62684015,86.521,86.452,59.63482903]
[1646012894026,6.06723354,86.523,86.452,59.63482903]
[1646012894228,1.60840951,86.535,86.453,6.0]
[1646012894633,2.74678921,86.534,86.453,6.0]
[1646012894829,0.75111504,86.475,86.454,115.8]
[1646012895029,2.74678921,86.534,86.456,115.8]
[1646012895229,2.74678921,86.545,86.458,115.8]
[1646012895429,1.7036248,86.555,86.46,129.85]
[1646012895643,1.7036248,86.555,86.462,115.8]
[1646012895828,1.7036248,86.555,86.464,115.8]
[1646012896028,1.7036248,86.555,86.468,115.8]
[1646012896229,1.4518738,86.563,86.47,14.05]
[1646012896428,2.74678921,86.555,86.471,6.0]
[1646012896628,2.74678921,86.555,86.467,56.87764648]
[1646012896828,6.0,86.554,86.467,56.87764648]
[1646012897230,2.74678921,86.553,86.467,56.87764648]
[1646012897831,2.74678921,86.553,86.468,6.0]
[1646012898432,1.47333829,86.549,86.468,121.8]
[1646012898635,4.70175203,86.553,86.468,121.8]
[1646012898837,2.74678921,86.548,86.468,6.0]
[1646012899134,4.527,86.547,86.467,56.87764648]
[1646012899536,2.74678921,86.546,86.467,56.87764648]
[1646012899733,4.493,86.545,86.467,56.87764648]
[1646012899937,17.355,86.54,86.467,56.87764648]
[1646012900135,6.32515775,86.539,86.467,56.87764648]
[1646012900335,9.07194696,86.539,86.467,56.87764648]
[1646012900537,8.83513458,86.539,86.467,56.87764648]
[1646012900738,2.74678921,86.538,86.467,56.87764648]
[1646012900935,118.54678921,86.538,86.442,22.9998]
[1646012901136,115.8,86.529,86.411,115.8]
[1646012901335,1.45116218,86.526,86.412,52.2312]
[1646012901537,1.45116218,86.526,86.413,115.8]
[1646012901735,1.45116218,86.526,86.456,1.4905483]
[1646012901942,2.74678921,86.525,86.457,55.69908458]
[1646012902336,17.3619,86.51,86.412,52.2312]
[1646012902537,1.5974819,86.509,86.412,52.2312]
[1646012902935,6.0,86.508,86.412,52.2312]
[1646012903136,47.4852,86.507,86.412,52.2312]
[1646012903339,1.72548655,86.506,86.414,115.8]
[1646012903538,1.72548655,86.506,86.415,6.0]
[1646012903736,2.74678921,86.505,86.415,6.0]
[1646012903937,17.3631,86.5,86.415,6.0]
[1646012904137,1.5043265,86.499,86.413,48.05170167]
[1646012904340,120.05111571,86.499,86.413,48.05170167]
[1646012904542,2.74678921,86.498,86.413,48.05170167]
[1646012904739,4.52913633,86.498,86.383,45.7402]
[1646012904941,115.8,86.489,86.384,6.0]
[1646012905141,1.93811689,86.488,86.384,6.0]
[1646012905343,115.8,86.486,86.384,6.0]
[1646012905543,1.93430166,86.485,86.385,4.627]
[1646012905744,1.93430166,86.485,86.386,57.68211378]
[1646012905946,2.74678921,86.484,86.386,57.68211378]
[1646012906144,2.74678921,86.484,86.387,115.8]
[1646012906342,2.74678921,86.484,86.389,115.8]
[1646012906542,2.74678921,86.484,86.391,115.8]
[1646012906741,2.74678921,86.484,86.392,10.627]
[1646012906943,2.74678921,86.484,86.393,6.0]
[1646012907163,2.74678921,86.484,86.388,146.4956]
[1646012907444,1.57288848,86.479,86.388,146.4956]
[1646012908246,23.0211,86.478,86.388,146.4956]
[1646012908451,7.70264573,86.477,86.388,146.4956]
[1646012908646,1.70264573,86.477,86.388,146.4956]
[1646012908848,23.8212,86.476,86.388,146.4956]
[1646012909047,1.89980767,86.475,86.388,146.4956]
[1646012909448,6.0,86.474,86.388,33.44238921]
[1646012909947,6.0,86.474,86.388,146.4956]
[1646012910848,1.89980767,86.475,86.388,146.4956]
[1646012911447,1.89980767,86.475,86.389,4.627]
[1646012911650,1.89980767,86.475,86.39,6.0]
[1646012911848,1.89980767,86.475,86.391,4.627]
[1646012912048,1.89980767,86.475,86.392,6.0]
[1646012912248,1.89980767,86.475,86.393,120.427]
[1646012912449,6.0,86.474,86.395,115.8]
[1646012912651,17.369,86.47,86.396,4.627]
[1646012912848,1.91285989,86.469,86.388,24.6956]
[1646012913049,1.91285989,86.469,86.389,6.0]
[1646012913449,1.49671399,86.468,86.389,6.0]
[1646012913649,1.49671399,86.468,86.387,6.0]
[1646012913851,1.49671399,86.468,86.386,51.68211378]
[1646012913852,17.3713,86.46,86.386,51.68211378]
[1646012914151,1.59420917,86.459,86.386,51.68211378]
[1646012914348,2.74678921,86.459,86.386,51.68211378]
[1646012914773,2.74678921,86.458,86.386,51.68211378]
[1646012915475,17.3735,86.45,86.386,51.68211378]
[1646012915674,1.93695055,86.449,86.386,51.68211378]
[1646012915875,4.68373976,86.449,86.361,22.9361]
[1646012916075,2.74678921,86.448,86.342,4.628]
[1646012916275,4.36702584,86.448,86.331,4.628]
[1646012916477,4.36702584,86.448,86.322,4.628]
[1646012916678,2.74678921,86.447,86.322,4.628]
[1646012916875,2.74678921,86.447,86.321,47.7551]
[1646012916876,1.9623973,86.444,86.324,45.92018533]
[1646012917076,14.05,86.44,86.326,115.8]
[1646012917277,1.81056083,86.439,86.328,115.8]
[1646012917482,17.38,86.42,86.329,6.0]
[1646012917678,24.82790803,86.419,86.329,10.63]
[1646012917879,1.77795177,86.418,86.329,10.63]
[1646012918481,1.77795177,86.418,86.329,6.0]
[1646012918680,17.3811,86.41,86.327,6.0]
[1646012918879,7.62777102,86.409,86.326,6.0]
[1646012919081,10.37456023,86.409,86.325,6.0]
[1646012919280,1.93831106,86.408,86.325,6.0]
[1646012919478,2.74678921,86.408,86.325,6.0]
[1646012919679,2.74678921,86.407,86.325,6.0]
[1646012920382,2.74678921,86.407,86.326,115.8]
[1646012920582,2.74678921,86.407,86.328,115.8]
[1646012920780,2.74678921,86.407,86.329,10.631]
[1646012921590,23.1839,86.419,86.329,10.631]
[1646012921881,23.1839,86.419,86.33,2.74678921]
[1646012922081,1.71013597,86.418,86.331,10.63]
[1646012922287,4.45692518,86.418,86.329,6.0]
[1646012922481,4.45692518,86.418,86.33,115.8]
[1646012922681,4.45692518,86.418,86.332,115.8]
[1646012922881,4.45692518,86.418,86.334,115.8]
[1646012923081,4.45692518,86.418,86.338,115.8]
[1646012923281,6.0,86.417,86.339,6.0]
[1646012923883,6.0,86.417,86.338,6.0]
[1646012924287,2.74678921,86.416,86.338,6.0]
[1646012925182,2.74678921,86.416,86.338,121.8]
[1646012925381,1.71013597,86.418,86.339,4.63]
[1646012925382,1.59225081,86.418,86.339,4.63]
[1646012925583,1.59225081,86.418,86.34,6.0]
[1646012925983,1.59225081,86.418,86.341,4.63]
[1646012926183,1.59225081,86.418,86.342,6.0]
[1646012926383,6.0,86.417,86.342,6.0]
[1646012926787,6.0,86.417,86.339,6.0]
[1646012926984,6.0,86.417,86.339,10.63]
[1646012927683,6.0,86.417,86.339,6.0]
[1646012928087,6.0,86.417,86.34,4.63]
[1646012928285,6.0,86.417,86.341,6.0]
[1646012928685,6.0,86.417,86.339,4.63]
[1646012928887,6.0,86.417,86.337,43.93372371]
[1646012928888,8.74678921,86.417,86.337,43.93372371]
[1646012929086,115.8,86.416,86.337,43.93372371]
[1646012929293,1.83134938,86.415,86.337,43.93372371]
[1646012929486,4.57813859,86.415,86.337,43.93372371]
[1646012929886,2.74678921,86.414,86.337,43.93372371]
[1646012930488,17.3813,86.41,86.337,43.93372371]
[1646012930688,1.91864602,86.409,86.337,43.93372371]
[1646012930885,4.66543523,86.409,86.337,43.93372371]
[1646012931787,1.61726102,86.399,86.337,43.93372371]
[1646012932890,6.0,86.398,86.337,43.93372371]
[1646012933190,1.61726102,86.399,86.337,43.93372371]
[1646012933390,6.0,86.398,86.337,43.93372371]
[1646012933990,2.74678921,86.397,86.337,43.93372371]
[1646012934398,17.3851,86.39,86.337,43.93372371]
[1646012934595,1.52274482,86.389,86.337,43.93372371]
[1646012934793,4.26953403,86.389,86.337,43.93372371]
[1646012935094,2.74678921,86.388,86.307,24.5591]
[1646012935295,115.8,86.387,86.307,24.5591]
[1646012935494,1.69320917,86.386,86.307,24.5591]
[1646012935694,4.43999838,86.386,86.307,24.5591]
[1646012935894,4.43999838,86.386,86.308,49.8360432]
[1646012936095,2.74678921,86.385,86.308,49.8360432]
[1646012936493,17.3894,86.37,86.308,49.8360432]
[1646012936694,1.52833111,86.369,86.308,49.8360432]
[1646012937898,6.0,86.368,86.308,49.8360432]
[1646012941402,2.74678921,86.367,86.308,49.8360432]
[1646012942004,17.3913,86.36,86.308,49.8360432]
[1646012942203,1.48274872,86.359,86.308,49.8360432]
[1646012942403,4.22953793,86.359,86.308,49.8360432]
[1646012942804,6.0,86.358,86.308,49.8360432]
[1646012943005,17.3931,86.35,86.296,4.63]
[1646012943205,1.77640882,86.349,86.296,4.63]
[1646012943809,1.77640882,86.349,86.297,56.38764958]
[1646012944008,2.74678921,86.348,86.297,56.38764958]
[1646012946519,2.74678921,86.348,86.296,4.63]
[1646012946922,17.3953,86.34,86.296,4.63]
[1646012947223,1.94919893,86.339,86.296,4.63]
[1646012947422,4.69598814,86.339,86.297,48.24325353]
[1646012947621,1.94919893,86.339,86.297,48.24325353]
[1646012947821,2.74678921,86.351,86.297,48.24325353]
[1646012948023,2.74678921,86.361,86.297,48.24325353]
[1646012948628,17.3923,86.36,86.297,48.24325353]
[1646012948827,1.92116189,86.359,86.297,48.24325353]
[1646012949033,6.0,86.359,86.298,115.8]
[1646012949228,2.74678921,86.36,86.298,121.8]
[1646012949428,1.50192543,86.389,86.298,121.8]
[1646012950429,17.3881,86.38,86.298,121.8]
[1646012950829,1.9417647,86.379,86.298,121.8]
[1646012951028,1.9417647,86.379,86.36,1.4944317]
[1646012951429,1.55152718,86.392,86.36,1.4944317]
[1646012951628,25.15157262,86.399,86.36,1.4944317]
[1646012951830,7.46241838,86.398,86.36,1.4944317]
[1646012952028,1.46241838,86.398,86.36,1.4944317]
[1646012952230,6.0,86.397,86.36,1.4944317]
[1646012954632,17.3853,86.39,86.36,1.4944317]
[1646012956238,1.60522764,86.389,86.36,1.4944317]
[1646012957941,117.40522764,86.389,86.36,1.4944317]
[1646012958142,115.8,86.387,86.299,47.3743]
[1646012958343,24.30256806,86.388,86.299,47.3743]
[1646012958344,17.39,86.37,86.299,47.3743]
[1646012958543,31.63506016,86.369,86.299,47.3743]
[1646012958745,1.8911297,86.368,86.299,47.3743]
[1646012958944,117.6911297,86.368,86.3,56.98055995]
[1646012959143,1.58586047,86.367,86.3,56.98055995]
[1646012959646,1.44633572,86.348,86.24,14.05]
[1646012959848,1.44633572,86.348,86.257,47.7178]
[1646012960545,1.44633572,86.348,86.289,54.10199816]
[1646012960749,1.93481568,86.358,86.289,54.10199816]
[1646012961346,2.74678921,86.357,86.289,54.10199816]
[1646012961545,17.3954,86.34,86.289,54.10199816]
[1646012961745,1.65730394,86.339,86.289,54.10199816]
[1646012962045,1.9519175,86.355,86.289,54.10199816]
[1646012962246,6.0,86.354,86.289,54.10199816]
[1646012963046,1.51669196,86.349,86.339,0.98769694]
[1646012963245,17.3936,86.35,86.339,0.98769694]
[1646012965251,6.0,86.354,86.339,0.98769694]
[1646012965949,1.85504499,86.366,86.339,0.98769694]
[1646012966649,1.68973556,86.364,86.339,0.98769694]
[1646012967049,1.86787386,86.359,86.339,0.98769694]
[1646012968549,23.5896,86.365,86.339,0.98769694]
[1646012969148,1.70436793,86.378,86.339,0.98769694]
[1646012969351,6.0,86.377,86.339,0.98769694]
[1646012969753,22.8886,86.379,86.339,0.98769694]
[1646012971056,17.3837,86.4,86.339,0.98769694]
[1646012971260,1.64858811,86.419,86.339,0.98769694]
[1646012973658,6.0,86.418,86.339,0.98769694]
[1646012973861,6.0,86.417,86.339,0.98769694]
[1646012974058,17.3792,86.42,86.339,0.98769694]
[1646012974357,6.0,86.419,86.339,0.98769694]
[1646012975181,7.49269317,86.419,86.339,0.98769694]
[1646012976080,17.3792,86.42,86.339,0.98769694]
[1646012976480,17.3792,86.42,86.34,115.8]
[1646012976686,1.57422846,86.439,86.342,115.8]
[1646012976880,1.57422846,86.439,86.339,6.98769694]
[1646012976881,24.6944,86.444,86.344,115.8]
[1646012977085,1.94826249,86.44,86.345,51.51662338]
[1646012977281,1.67494435,86.439,86.345,51.51662338]
[1646012977581,6.0,86.43,86.345,51.51662338]
[1646012978082,24.1863,86.429,86.345,51.51662338]
[1646012978281,24.1863,86.429,86.346,115.8]
[1646012978486,24.1863,86.429,86.348,115.8]
[1646012978682,24.1863,86.429,86.35,115.8]
[1646012978881,24.1863,86.429,86.352,115.8]
[1646012979082,24.1863,86.429,86.354,115.8]
[1646012979282,24.1863,86.429,86.356,115.8]
[1646012979483,24.1863,86.429,86.355,23.7591]
[1646012979784,1.62002948,86.428,86.355,23.7591]
[1646012979987,7.62002948,86.428,86.355,23.7591]
[1646012981884,24.1863,86.429,86.357,115.8]
[1646012982086,24.1863,86.429,86.359,59.26472636]
[1646012982284,24.1863,86.429,86.36,115.8]
[1646012982490,24.1863,86.429,86.36,121.8]
[1646012982685,1.68143716,86.449,86.42,0.98769694]
[1646012982889,21.55577885,86.463,86.421,51.62742876]
[1646012983187,94.70854326,86.48,86.421,51.62742876]
[1646012984586,17.7204,86.482,86.421,51.62742876]
[1646012984786,6.0,86.481,86.421,51.62742876]
[1646012984988,7.81122989,86.481,86.421,51.62742876]
[1646012985388,1.81122989,86.481,86.421,51.62742876]
[1646012985792,48.07959786,86.496,86.421,51.62742876]
[1646012985987,6.0,86.495,86.422,6.0]
[1646012986587,24.30256806,86.494,86.421,51.62742876]
[1646012986789,1.70422188,86.493,86.421,51.62742876]
[1646012986988,26.00678994,86.493,86.421,51.62742876]
[1646012987190,21.55577885,86.492,86.421,51.62742876]
[1646012987591,17.3652,86.49,86.421,51.62742876]
[1646012987790,1.68149715,86.489,86.421,51.62742876]
[1646012987990,140.10256806,86.489,86.421,51.62742876]
[1646012988190,115.8,86.487,86.421,51.62742876]
[1646012988389,1.71335531,86.486,86.421,51.62742876]
[1646012988590,115.8,86.485,86.421,51.62742876]
[1646012988892,1.68829389,86.484,86.421,51.62742876]
[1646012989090,1.84707975,86.483,86.421,51.62742876]
[1646012989290,23.4028586,86.483,86.421,51.62742876]
[1646012989490,17.3674,86.48,86.421,51.62742876]
[1646012989689,1.46667452,86.479,86.421,51.62742876]
[1646012990693,17.3674,86.48,86.421,51.62742876]
[1646012991495,7.81754042,86.479,86.421,51.62742876]
[1646012991697,7.81754042,86.479,86.421,51.12742876]
[1646012992597,7.81754042,86.479,86.47,0.98769694]
[1646012993201,27.55577885,86.479,86.447,45.86382218]
[1646012993396,1.79400268,86.478,86.393,115.8]
[1646012993599,6.0,86.479,86.395,115.8]
[1646012993796,6.0,86.479,86.397,115.8]
[1646012994001,1.91048055,86.489,86.398,121.8]
[1646012994199,115.8,86.489,86.394,6.0]
[1646012994398,4.34786735,86.488,86.395,48.30675013]
[1646012994599,4.34786735,86.488,86.396,6.0]
[1646012994798,2.74678921,86.487,86.396,6.0]
[1646012994997,24.8852,86.486,86.396,6.0]
[1646012995197,1.93343011,86.485,86.396,6.0]
[1646012995398,23.48920896,86.485,86.395,48.30675013]
[1646012995599,17.3671,86.48,86.395,48.30675013]
[1646012995799,1.64930992,86.479,86.395,48.30675013]
[1646012995999,21.55577885,86.479,86.395,48.30675013]
[1646012996198,137.35577885,86.478,86.395,48.30675013]
[1646012996400,1.61669067,86.477,86.395,48.30675013]
[1646012996601,115.8,86.476,86.395,48.30675013]
[1646012996805,140.5197,86.475,86.395,48.30675013]
[1646012996998,1.88752659,86.474,86.395,48.30675013]
[1646012997298,23.44330544,86.474,86.395,48.30675013]
[1646012997498,17.3699,86.47,86.395,48.30675013]
[1646012997698,115.8,86.468,86.395,48.30675013]
[1646012997899,1.94291123,86.467,86.35,17.3711]
[1646012998099,23.49869008,86.467,86.377,200.0]
[1646012998299,71.11039729,86.466,86.377,200.0]
[1646012998502,115.8,86.465,86.377,200.0]
[1646012998702,1.53457891,86.464,86.377,200.0]
[1646012998900,115.8,86.459,86.378,45.45791694]
[1646012999104,17.3773,86.44,86.378,45.45791694]
[1646012999301,1.6538955,86.439,86.378,45.45791694]
[1646012999501,1.6538955,86.439,86.377,200.0]
[1646012999705,115.8,86.447,86.377,200.0]
[1646012999706,2.74678921,86.438,86.377,200.0]
[1646013000100,4.30538529,86.438,86.377,200.0]
[1646013000501,17.3777,86.43,86.377,200.0]
[1646013000705,1.48900321,86.429,86.377,200.0]
[1646013000903,25.69358921,86.437,86.377,200.0]
[1646013001101,1.95596831,86.436,86.377,200.0]
[1646013001304,6.0,86.435,86.377,200.0]
[1646013001904,17.3808,86.42,86.378,54.9651979]
[1646013002802,1.63704655,86.419,86.378,54.9651979]
[1646013003403,1.63704655,86.419,86.377,200.0]
[1646013004408,1.63704655,86.419,86.378,49.74002193]
[1646013005107,1.63704655,86.419,86.377,200.0]
[1646013005308,17.381,86.41,86.377,200.0]
[1646013005508,1.91700726,86.409,86.377,200.0]
[1646013005709,17.381,86.41,86.377,200.0]
[1646013006109,17.381,86.41,86.378,53.44717146]
[1646013006910,6.0,86.409,86.378,53.44717146]
[1646013007108,1.5710677,86.429,86.378,53.44717146]
[1646013007711,4.18075682,86.435,86.378,53.44717146]
[1646013008312,17.3797,86.42,86.377,200.0]
[1646013008514,1.94102582,86.419,86.377,200.0]
[1646013008712,6.0,86.418,86.377,200.0]
[1646013009117,1.83029882,86.428,86.377,200.0]
[1646013009319,1.74816373,86.425,86.377,200.0]
[1646013009518,17.3829,86.41,86.377,200.0]
[1646013009723,1.6880922,86.409,86.377,200.0]
[1646013010118,115.8,86.399,86.377,200.0]
[1646013010318,117.24672396,86.399,86.377,200.0]
[1646013010520,4.35653766,86.398,86.377,200.0]
[1646013010819,2.74678921,86.398,86.377,44.1236]
[1646013011020,4.236,86.407,86.377,44.1236]
[1646013011618,17.3868,86.39,86.377,44.1236]
[1646013011821,17.3868,86.39,86.378,54.36323851]
[1646013012018,1.87393036,86.4,86.378,54.36323851]
[1646013012219,1.64207108,86.419,86.378,54.36323851]
[1646013012422,1.45896486,86.425,86.378,54.36323851]
[1646013013021,17.3822,86.41,86.378,54.36323851]
[1646013013220,18.90318245,86.41,86.378,54.36323851]
[1646013014923,6.0,86.409,86.378,54.36323851]
[1646013016035,6.0,86.409,86.377,44.1236]
[1646013017145,17.3849,86.4,86.377,44.1236]
[1646013017543,1.6125767,86.399,86.377,44.1236]
[1646013018345,17.3849,86.4,86.377,44.1236]
[1646013018544,1.46698581,86.408,86.377,44.1236]
[1646013018744,1.78910979,86.416,86.377,44.1236]
[1646013019343,1.78910979,86.416,86.378,54.00180227]
[1646013020547,1.78910979,86.416,86.377,44.1236]
[1646013020963,6.0,86.415,86.377,44.1236]
[1646013021749,17.3784,86.43,86.378,47.68538694]
[1646013022451,6.0,86.429,86.41,0.58610687]
[1646013022646,17.3784,86.43,86.41,0.58610687]
[1646013022847,22.5885,86.443,86.41,0.58610687]
[1646013024048,17.3743,86.45,86.41,0.58610687]
[1646013024849,6.0,86.449,86.41,0.58610687]
[1646013025153,17.375,86.44,86.41,0.58610687]
[1646013025348,1.50099985,86.439,86.41,0.58610687]
[1646013027250,17.375,86.44,86.41,0.58610687]
[1646013027450,1.89100526,86.439,86.41,0.58610687]
[1646013028051,6.17500526,86.439,86.41,0.58610687]
[1646013028251,115.8,86.437,86.41,0.58610687]
[1646013028452,17.38,86.43,86.41,0.58610687]
[1646013028656,120.079,86.429,86.377,44.1236]
[1646013028851,1.51626194,86.428,86.377,44.1236]
[1646013029052,4.277,86.427,86.378,44.26437993]
[1646013029454,1.97911685,86.448,86.378,44.26437993]
[1646013029653,1.97911685,86.448,86.379,24.014]
[1646013030155,4.275,86.447,86.379,24.014]
[1646013030554,17.3757,86.44,86.379,24.014]
[1646013030976,6.0,86.439,86.379,24.014]
[1646013031358,2.74678921,86.438,86.379,24.014]
[1646013031756,17.3771,86.43,86.379,24.014]
[1646013036062,6.0,86.429,86.379,24.014]
[1646013036862,4.289,86.447,86.38,20.0]
[1646013037063,17.6898,86.464,86.38,31.42]
[1646013037261,4.317,86.489,86.381,115.8]
[1646013037460,4.332,86.493,86.383,115.8]
[1646013037663,17.3672,86.48,86.384,6.0]
[1646013037862,17.3672,86.48,86.382,6.0]
[1646013038366,8.74678921,86.479,86.381,6.0]
[1646013038764,2.74678921,86.478,86.381,6.0]
[1646013039765,6.0,86.477,86.381,6.0]
[1646013040164,2.74678921,86.476,86.381,6.0]
[1646013040566,2.74678921,86.476,86.382,115.8]
[1646013040765,2.74678921,86.476,86.384,115.8]
[1646013040974,2.74678921,86.476,86.385,6.0]